[Event "30th Tamil Nadu IM Norm 2024"]
[Site "Coimbatore"]
[Date "2024.10.01"]
[Round "2.4"]
[White "Podolchenko, Evgeniy"]
[Black "Nandish V S"]
[Result "1-0"]
[ECO "E32"]
[WhiteElo "2338"]
[BlackElo "2212"]
[Annotator "RC"]
[PlyCount "65"]
[EventDate "2024.09.15"]
[EventCountry "IND"]
[SourceTitle "playchess.com"]
[Source "ChessBase"]
[SourceQuality "1"]
[TimeControl "5400+30"]

1. d4 {[%emt 0:02:17]} Nf6 {[%emt 0:00:23]} 2. c4 {[%emt 0:00:05]} e6 {[%emt 0:00:03]} 3. Nc3 {[%emt 0:00:04]} Bb4 {[%emt 0:00:04]} 4. Qc2 {[%emt 0:00:04]} d6 {[%emt 0:00:04]} 5. e3 {[%emt 0:00:08]} Nbd7 {[%emt 0:01:28]} 6. Bd3 {[%emt 0:03:33]} O-O {[%emt 0:00:08]} 7. Nge2 {[%emt 0:00:05]} e5 {[%emt 0:01:03]} 8. f3 {[%emt 0:04:51]} c6 {[%emt 0:20:37]} 9. O-O {[%emt 0:01:53]} Re8 {[%emt 0:08:09]} 10. a3 {[%emt 0:04:00]} Ba5 {[%emt 0:03:19]} 11. b4 {[%emt 0:03:01]} Bb6 {[%emt 0:01:19]} 12. d5 {[%emt 0:02:52]} cxd5 {[%emt 0:05:23]} 13. cxd5 {[%emt 0:00:09]} e4 {[%emt 0:08:38]} 14. Nxe4 {[%emt 0:12:14]} Nxe4 {[%emt 0:01:27]} 15. Bxe4 {[%emt 0:00:19]} Nf6 {[%emt 0:00:06]} 16. Kh1 {[%emt 0:09:00]} Nxe4 {[%emt 0:03:33]} 17. fxe4 {[%emt 0:00:02]} Bd7 {[%emt 0:14:09]} 18. Ng3 {[%emt 0:02:18]} Qg5 {[%emt 0:03:09]} 19. Rf4 {[%emt 0:01:02]} Rac8 {[%emt 0:02:49]} 20. Qf2 {[%emt 0:00:02]} f6 {[%emt 0:01:12]} 21. Bb2 {[%emt 0:00:42]} Ba4 {[%emt 0:10:05]} 22. Qf3 {[%emt 0:02:17]} Bd7 {[%emt 0:05:37]} 23. Nh5 {[%emt 0:01:22]} Re5 {[%emt 0:02:34]} 24. g4 {[%emt 0:20:00]} Rc2 {[%emt 0:03:30]} 25. Bxe5 {[%emt 0:01:57]} Qxe5 {[%emt 0:02:48]} 26. Rf1 {[%emt 0:00:51]} Qb2 {[%emt 0:00:30]} 27. Qh3 {[%emt 0:02:53]} Bb5 {[%emt 0:01:04]} 28. g5 {[%emt 0:04:38]} Bxf1 {[%emt 0:00:48]} 29. Qe6+ {[%emt 0:00:06]} Kf8 {[%emt 0:00:03]} 30. Qxd6+ {[%emt 0:00:09]} Kf7 {[%emt 0:00:55]} 31. Qd7+ {[%emt 0:00:44]} Kg6 {[%emt 0:00:28]} 32. Qxg7+ {[%emt 0:00:06]} Kxh5 {[%emt 0:00:30]} 33. Qh6# {[%emt 0:00:03]} 1-0

[Event "30th Tamil Nadu IM Norm 2024"]
[Site "Coimbatore"]
[Date "2024.10.01"]
[Round "2.5"]
[White "Mohamed Anees M"]
[Black "Tologon tegin, Semetei"]
[Result "0-1"]
[ECO "A06"]
[WhiteElo "2347"]
[BlackElo "2337"]
[Annotator "RC"]
[PlyCount "214"]
[EventDate "2024.09.15"]
[EventCountry "IND"]
[SourceTitle "playchess.com"]
[Source "ChessBase"]
[SourceQuality "1"]
[TimeControl "5400+30"]

1. b3 {[%emt 0:00:15]} d5 {[%emt 0:01:21]} 2. Bb2 {[%emt 0:00:07]} c5 {[%emt 0:00:05]} 3. e3 {[%emt 0:00:05]} a6 {[%emt 0:00:03]} 4. Nf3 {[%emt 0:00:17]} Nc6 {[%emt 0:00:08]} 5. d4 {[%emt 0:00:23]} Nf6 {[%emt 0:00:29]} 6. Be2 {[%emt 0:01:56]} Bg4 {[%emt 0:00:46]} 7. Nbd2 {[%emt 0:00:20]} e6 {[%emt 0:00:37]} 8. O-O {[%emt 0:00:08]} cxd4 {[%emt 0:04:47]} 9. exd4 {[%emt 0:09:55]} Rc8 {[%emt 0:01:00]} 10. a3 {[%emt 0:00:21]} Be7 {[%emt 0:14:26]} 11. Bd3 {[%emt 0:10:59]} O-O {[%emt 0:00:38]} 12. Qe1 {[%emt 0:00:21]} Qb6 {[%emt 0:02:59]} 13. Qe3 {[%emt 0:02:18]} Bh5 {[%emt 0:04:07]} 14. Rac1 {[%emt 0:01:59]} Rfd8 {[%emt 0:01:52]} 15. Rfe1 {[%emt 0:01:31]} Ng4 {[%emt 0:11:23]} 16. Qe2 {[%emt 0:21:11]} Bd6 {[%emt 0:05:28]} 17. h3 {[%emt 0:03:22]} Nf6 {[%emt 0:03:42]} 18. Qe3 {[%emt 0:02:30]} Bg6 {[%emt 0:01:15]} 19. Bxg6 {[%emt 0:00:43]} hxg6 {[%emt 0:00:04]} 20. Ne5 {[%emt 0:03:53]} Nxe5 {[%emt 0:16:12]} 21. dxe5 {[%emt 0:00:06]} Bc5 {[%emt 0:00:02]} 22. Qf4 {[%emt 0:03:54]} Nh7 {[%emt 0:04:04]} 23. Re2 {[%emt 0:03:00]} Rc6 {[%emt 0:00:21]} 24. Nf3 {[%emt 0:04:32]} Rdc8 {[%emt 0:01:23]} 25. h4 {[%emt 0:02:46]} Qd8 {[%emt 0:00:38]} 26. g3 {[%emt 0:01:41]} Qf8 {[%emt 0:03:29]} 27. a4 {[%emt 0:02:01]} Ba3 {[%emt 0:00:32]} 28. Bxa3 {[%emt 0:00:35]} Qxa3 {[%emt 0:00:07]} 29. Nd4 {[%emt 0:00:44]} Rc3 {[%emt 0:01:24]} 30. Kg2 {[%emt 0:00:44]} Qe7 {[%emt 0:01:01]} 31. Rh1 {[%emt 0:00:58]} Nf8 {[%emt 0:00:55]} 32. Qg4 {[%emt 0:01:23]} Qb4 {[%emt 0:01:29]} 33. h5 {[%emt 0:06:04]} Rxc2 {[%emt 0:11:59]} 34. Nc6 {[%emt 0:01:08]} Qa3 {[%emt 0:02:06]} 35. Rxc2 {[%emt 0:01:20]} Rxc6 {[%emt 0:00:04]} 36. Rxc6 {[%emt 0:01:39]} bxc6 {[%emt 0:00:02]} 37. h6 {[%emt 0:01:21]} gxh6 {[%emt 0:00:34]} 38. Rxh6 {[%emt 0:00:08]} Qb2 {[%emt 0:03:29]} 39. Qg5 {[%emt 0:01:05]} Nh7 {[%emt 0:00:31]} 40. Qd8+ {[%emt 0:03:39]} Nf8 {[%emt 0:00:15]} 41. Qf6 {[%emt 0:01:57]} Nh7 {[%emt 0:00:03]} 42. Qf4 {[%emt 0:00:29]} g5 {[%emt 0:05:07]} 43. Qe3 {[%emt 0:00:24]} Qc2 {[%emt 0:00:31]} 44. Rh1 {[%emt 0:00:07]} d4 {[%emt 0:00:22]} 45. Qxd4 {[%emt 0:00:19]} Qxb3 {[%emt 0:00:04]} 46. Rc1 {[%emt 0:00:56]} Nf8 {[%emt 0:00:09]} 47. Rxc6 {[%emt 0:01:42]} Ng6 {[%emt 0:00:03]} 48. Qe4 {[%emt 0:02:24]} Qb7 {[%emt 0:01:13]} 49. Rc4 {[%emt 0:00:05]} Qb8 {[%emt 0:00:02]} 50. Rc5 {[%emt 0:01:22]} Qb6 {[%emt 0:00:04]} 51. Qc6 {[%emt 0:01:14]} Qb4 {[%emt 0:00:50]} 52. Rc4 {[%emt 0:01:10]} Qa5 {[%emt 0:00:48]} 53. Qc5 {[%emt 0:00:27]} Qd2 {[%emt 0:00:01]} 54. Rd4 {[%emt 0:01:38]} Qe2 {[%emt 0:00:03]} 55. Rd8+ {[%emt 0:00:15]} Kg7 {[%emt 0:00:01]} 56. Qe3 {[%emt 0:00:16]} Qg4 {[%emt 0:00:49]} 57. Kh2 {[%emt 0:01:28]} Qf5 {[%emt 0:00:40]} 58. Qd4 {[%emt 0:00:48]} Nxe5 {[%emt 0:00:39]} 59. f4 {[%emt 0:00:56]} Qc2+ {[%emt 0:01:57]} 60. Kg1 {[%emt 0:00:04]} Qc1+ {[%emt 0:00:37]} 61. Kf2 {[%emt 0:00:02]} Qc2+ {[%emt 0:00:14]} 62. Ke3 {[%emt 0:00:24]} Qb3+ {[%emt 0:00:23]} 63. Ke2 {[%emt 0:01:33]} Qc2+ {[%emt 0:00:11]} 64. Ke3 {[%emt 0:00:03]} Qb3+ {[%emt 0:00:03]} 65. Kd2 {[%emt 0:00:54]} Qa2+ {[%emt 0:00:05]} 66. Kc1 {[%emt 0:00:21]} Qa3+ {[%emt 0:00:33]} 67. Qb2 {[%emt 0:00:37]} Qe3+ {[%emt 0:00:18]} 68. Rd2 {[%emt 0:00:25]} gxf4 {[%emt 0:00:12]} 69. gxf4 {[%emt 0:00:06]} Qxf4 {[%emt 0:00:06]} 70. Qd4 {[%emt 0:00:48]} Qg3 {[%emt 0:01:12]} 71. Kb2 {[%emt 0:00:42]} f6 {[%emt 0:01:41]} 72. Qe4 {[%emt 0:00:17]} Kh6 {[%emt 0:00:22]} 73. Ka2 {[%emt 0:00:23]} Nf3 {[%emt 0:00:47]} 74. Rb2 {[%emt 0:01:00]} Ng5 {[%emt 0:00:28]} 75. Qh1+ {[%emt 0:00:03]} Kg6 {[%emt 0:00:11]} 76. Qa8 {[%emt 0:00:04]} Qd6 {[%emt 0:00:15]} 77. Qe8+ {[%emt 0:01:11]} Kf5 {[%emt 0:00:30]} 78. Qa8 {[%emt 0:00:42]} Ne4 {[%emt 0:00:18]} 79. Qb7 {[%emt 0:00:29]} Ke5 {[%emt 0:00:32]} 80. Qb3 {[%emt 0:00:26]} f5 {[%emt 0:00:31]} 81. Qf3 {[%emt 0:00:35]} Qd5+ {[%emt 0:00:32]} 82. Ka1 {[%emt 0:00:04]} Qd4 {[%emt 0:00:17]} 83. Qb3 {[%emt 0:00:12]} Nc5 {[%emt 0:01:05]} 84. Qb8+ {[%emt 0:00:22]} Ke4 {[%emt 0:00:12]} 85. Kb1 {[%emt 0:01:19]} Qd1+ {[%emt 0:00:08]} 86. Ka2 {[%emt 0:00:02]} Qxa4+ {[%emt 0:00:06]} 87. Kb1 {[%emt 0:00:03]} Qd1+ {[%emt 0:00:09]} 88. Ka2 {[%emt 0:00:03]} Qd5+ {[%emt 0:00:10]} 89. Kb1 {[%emt 0:00:14]} Nd3 {[%emt 0:02:10]} 90. Rb6 {[%emt 0:01:03]} e5 {[%emt 0:01:09]} 91. Qh8 {[%emt 0:01:19]} f4 {[%emt 0:00:33]} 92. Qh4 {[%emt 0:00:46]} Qc5 {[%emt 0:00:35]} 93. Rb3 {[%emt 0:00:32]} Qc1+ {[%emt 0:00:26]} 94. Ka2 {[%emt 0:00:05]} Qd2+ {[%emt 0:00:06]} 95. Kb1 {[%emt 0:00:19]} Qd1+ {[%emt 0:00:57]} 96. Ka2 {[%emt 0:00:05]} Qc2+ {[%emt 0:00:35]} 97. Ka1 {[%emt 0:00:11]} Qd1+ {[%emt 0:00:22]} 98. Ka2 {[%emt 0:00:05]} Qd2+ {[%emt 0:00:12]} 99. Kb1 {[%emt 0:00:06]} Qe1+ {[%emt 0:00:26]} 100. Qxe1+ {[%emt 0:00:04]} Nxe1 {[%emt 0:00:05]} 101. Kc1 {[%emt 0:00:02]} Nd3+ {[%emt 0:00:53]} 102. Kd2 {[%emt 0:00:13]} f3 {[%emt 0:00:41]} 103. Ra3 {[%emt 0:00:37]} Nc5 {[%emt 0:00:04]} 104. Rc3 {[%emt 0:00:08]} Ne6 {[%emt 0:00:37]} 105. Rc6 {[%emt 0:01:01]} f2 {[%emt 0:00:42]} 106. Rc1 {[%emt 0:00:05]} Nf4 {[%emt 0:00:15]} 107. Ra1 {[%emt 0:01:05]} Kf3 {[%emt 0:00:22]} 0-1

[Event "30th Tamil Nadu IM Norm 2024"]
[Site "Coimbatore"]
[Date "2024.10.02"]
[Round "4.1"]
[White "Bharadia Yash"]
[Black "Arnav Maheshwari"]
[Result "0-1"]
[ECO "C60"]
[WhiteElo "2415"]
[BlackElo "2293"]
[Annotator "RC"]
[PlyCount "74"]
[EventDate "2024.09.15"]
[EventCountry "IND"]
[SourceTitle "playchess.com"]
[Source "ChessBase"]
[SourceQuality "1"]
[TimeControl "5400+30"]

1. e4 {[%emt 0:01:46]} e5 {[%emt 0:01:15]} 2. Nf3 {[%emt 0:00:10]} Nc6 {[%emt 0:00:12]} 3. Bb5 {[%emt 0:00:19]} Nge7 {[%emt 0:00:07]} 4. Nc3 {[%emt 0:04:45]} Ng6 {[%emt 0:00:16]} 5. d4 {[%emt 0:02:22]} exd4 {[%emt 0:00:09]} 6. Nxd4 {[%emt 0:00:14]} Nxd4 {[%emt 0:00:10]} 7. Qxd4 {[%emt 0:00:09]} c6 {[%emt 0:00:08]} 8. Be2 {[%emt 0:02:25]} Qb6 {[%emt 0:00:58]} 9. Qd3 {[%emt 0:02:49]} Be7 {[%emt 0:00:36]} 10. O-O {[%emt 0:02:14]} O-O {[%emt 0:00:15]} 11. Be3 {[%emt 0:11:29]} Qc7 {[%emt 0:00:49]} 12. Qc4 {[%emt 0:02:37]} Ne5 {[%emt 0:12:21]} 13. Qd4 {[%emt 0:01:35]} d6 {[%emt 0:00:35]} 14. f4 {[%emt 0:04:40]} Ng4 {[%emt 0:16:21]} 15. Bxg4 {[%emt 0:00:28]} Bxg4 {[%emt 0:00:08]} 16. f5 {[%emt 0:00:13]} Bh5 {[%emt 0:02:52]} 17. Qc4 {[%emt 0:15:19]} Rac8 {[%emt 0:04:39]} 18. h3 {[%emt 0:02:03]} b5 {[%emt 0:16:16]} 19. Qb3 {[%emt 0:00:20]} b4 {[%emt 0:11:45]} 20. Qxb4 {[%emt 0:00:29]} f6 {[%emt 0:00:45]} 21. Qa4 {[%emt 0:02:04]} Rb8 {[%emt 0:01:31]} 22. b3 {[%emt 0:01:12]} Rb7 {[%emt 0:01:34]} 23. Qa6 {[%emt 0:01:14]} Rfb8 {[%emt 0:03:16]} 24. Qd3 {[%emt 0:05:49]} Re8 {[%emt 0:01:24]} 25. Na4 {[%emt 0:05:26]} Bf8 {[%emt 0:02:06]} 26. c4 {[%emt 0:00:32]} Kh8 {[%emt 0:04:22]} 27. Bf4 {[%emt 0:00:49]} Qe7 {[%emt 0:00:54]} 28. Nc3 {[%emt 0:00:50]} Rd7 {[%emt 0:00:10]} 29. Kh1 {[%emt 0:04:46]} Qd8 {[%emt 0:00:43]} 30. Rf2 {[%emt 0:01:26]} Qa5 {[%emt 0:02:08]} 31. Qg3 {[%emt 0:02:13]} Bf7 {[%emt 0:03:51]} 32. Qf3 {[%emt 0:12:45]} d5 {[%emt 0:03:30]} 33. exd5 {[%emt 0:00:49]} cxd5 {[%emt 0:00:09]} 34. Nxd5 {[%emt 0:05:40]} Bxd5 {[%emt 0:00:28]} 35. cxd5 {[%emt 0:00:03]} Rxd5 {[%emt 0:00:21]} 36. Bg3 {[%emt 0:01:12]} Red8 {[%emt 0:01:48]} 37. Qe4 {[%emt 0:02:41]} Qc3 {[%emt 0:00:31]} 0-1

[Event "30th Tamil Nadu IM Norm 2024"]
[Site "Coimbatore"]
[Date "2024.10.02"]
[Round "4.2"]
[White "Aakash G"]
[Black "Manik, Mikulas"]
[Result "1/2-1/2"]
[ECO "E61"]
[WhiteElo "2279"]
[BlackElo "2316"]
[Annotator "RC"]
[PlyCount "40"]
[EventDate "2024.09.15"]
[EventCountry "IND"]
[SourceTitle "playchess.com"]
[Source "ChessBase"]
[SourceQuality "1"]
[TimeControl "5400+30"]

1. d4 {[%emt 0:00:03]} Nf6 {[%emt 0:00:02]} 2. c4 {[%emt 0:00:07]} g6 {[%emt 0:00:02]} 3. Nc3 {[%emt 0:00:06]} Bg7 {[%emt 0:00:03]} 4. Nf3 {[%emt 0:00:06]} O-O {[%emt 0:00:05]} 5. Bg5 {[%emt 0:00:03]} h6 {[%emt 0:00:39]} 6. Bf4 {[%emt 0:01:24]} d6 {[%emt 0:01:02]} 7. e3 {[%emt 0:00:36]} Nh5 {[%emt 0:00:20]} 8. Bg3 {[%emt 0:00:14]} c5 {[%emt 0:03:23]} 9. Bd3 {[%emt 0:02:03]} cxd4 {[%emt 0:03:47]} 10. Nxd4 {[%emt 0:01:21]} Nxg3 {[%emt 0:00:11]} 11. hxg3 {[%emt 0:00:03]} Nc6 {[%emt 0:00:14]} 12. Qd2 {[%emt 0:01:23]} Bd7 {[%emt 0:13:33]} 13. O-O-O {[%emt 0:05:28]} Rc8 {[%emt 0:03:51]} 14. Nxc6 {[%emt 0:00:07]} Rxc6 {[%emt 0:00:16]} 15. Kb1 {[%emt 0:00:59]} Be6 {[%emt 0:00:07]} 16. b3 {[%emt 0:00:37]} Qb6 {[%emt 0:01:05]} 17. Na4 {[%emt 0:00:09]} Qd8 {[%emt 0:00:15]} 18. Nc3 {[%emt 0:00:06]} Qb6 {[%emt 0:00:04]} 19. Na4 {[%emt 0:00:04]} Qd8 {[%emt 0:00:03]} 20. Nc3 {[%emt 0:00:06]} Qb6 1/2-1/2

[Event "30th Tamil Nadu IM Norm 2024"]
[Site "Coimbatore"]
[Date "2024.10.02"]
[Round "4.3"]
[White "Podolchenko, Evgeniy"]
[Black "Annageldyev, Orazly"]
[Result "1-0"]
[ECO "A58"]
[WhiteElo "2338"]
[BlackElo "2105"]
[Annotator "RC"]
[PlyCount "47"]
[EventDate "2024.09.15"]
[EventCountry "IND"]
[SourceTitle "playchess.com"]
[Source "ChessBase"]
[SourceQuality "1"]
[TimeControl "5400+30"]

1. d4 {[%emt 0:01:27]} Nf6 {[%emt 0:00:59]} 2. c4 {[%emt 0:00:06]} c5 {[%emt 0:00:21]} 3. d5 {[%emt 0:00:05]} b5 {[%emt 0:00:25]} 4. cxb5 {[%emt 0:00:05]} a6 {[%emt 0:00:11]} 5. bxa6 {[%emt 0:00:05]} e6 {[%emt 0:00:35]} 6. Nc3 {[%emt 0:02:21]} Nxd5 {[%emt 0:02:06]} 7. Nxd5 {[%emt 0:03:25]} exd5 {[%emt 0:00:24]} 8. Qxd5 {[%emt 0:00:39]} Rxa6 {[%emt 0:03:12]} 9. Qe5+ {[%emt 0:01:30]} Be7 {[%emt 0:06:44]} 10. Qxb8 {[%emt 0:00:21]} O-O {[%emt 0:00:32]} 11. Qb3 {[%emt 0:01:01]} d5 {[%emt 0:01:42]} 12. e3 {[%emt 0:01:09]} c4 {[%emt 0:00:24]} 13. Qc2 {[%emt 0:00:13]} g6 {[%emt 0:00:40]} 14. Nf3 {[%emt 0:00:15]} Bf5 {[%emt 0:00:32]} 15. Qd1 {[%emt 0:00:03]} Qa8 {[%emt 0:10:08]} 16. Be2 {[%emt 0:00:55]} Bb4+ {[%emt 0:22:46]} 17. Bd2 {[%emt 0:00:24]} Bxd2+ {[%emt 0:00:05]} 18. Qxd2 {[%emt 0:00:07]} Rxa2 {[%emt 0:00:14]} 19. Rxa2 {[%emt 0:00:04]} Qxa2 {[%emt 0:00:15]} 20. O-O {[%emt 0:01:45]} Rb8 {[%emt 0:00:27]} 21. Qxd5 {[%emt 0:02:50]} Be6 {[%emt 0:00:11]} 22. Qe5 {[%emt 0:04:26]} Rxb2 {[%emt 0:01:52]} 23. Nd4 {[%emt 0:02:12]} Rxe2 {[%emt 0:03:13]} 24. Nxe2 {[%emt 0:02:48]} 1-0

[Event "30th Tamil Nadu IM Norm 2024"]
[Site "Coimbatore"]
[Date "2024.10.02"]
[Round "4.4"]
[White "Mohamed Anees M"]
[Black "Dhruva Thota"]
[Result "1-0"]
[ECO "B95"]
[WhiteElo "2347"]
[BlackElo "2342"]
[Annotator "RC"]
[PlyCount "101"]
[EventDate "2024.09.15"]
[EventCountry "IND"]
[SourceTitle "playchess.com"]
[Source "ChessBase"]
[SourceQuality "1"]
[TimeControl "5400+30"]

1. e4 {[%emt 0:00:07]} c5 {[%emt 0:01:02]} 2. Nf3 {[%emt 0:00:06]} d6 {[%emt 0:00:12]} 3. d4 {[%emt 0:00:07]} cxd4 {[%emt 0:00:19]} 4. Nxd4 {[%emt 0:00:09]} Nf6 {[%emt 0:00:09]} 5. Nc3 {[%emt 0:00:05]} a6 {[%emt 0:00:37]} 6. Bg5 {[%emt 0:01:20]} e6 {[%emt 0:00:27]} 7. Qf3 {[%emt 0:00:47]} Nbd7 {[%emt 0:02:04]} 8. O-O-O {[%emt 0:00:35]} Qc7 {[%emt 0:00:34]} 9. Qg3 {[%emt 0:00:43]} b5 {[%emt 0:00:39]} 10. a3 {[%emt 0:00:21]} Rb8 {[%emt 0:00:54]} 11. f3 {[%emt 0:08:28]} h6 {[%emt 0:08:25]} 12. Be3 {[%emt 0:04:08]} g6 {[%emt 0:09:00]} 13. Kb1 {[%emt 0:07:14]} e5 {[%emt 0:05:13]} 14. Nb3 {[%emt 0:03:07]} Bb7 {[%emt 0:03:43]} 15. Qf2 {[%emt 0:02:15]} Bc6 {[%emt 0:07:00]} 16. Nd5 {[%emt 0:12:56]} Bxd5 {[%emt 0:05:22]} 17. exd5 {[%emt 0:00:06]} Nb6 {[%emt 0:01:09]} 18. Bxb6 {[%emt 0:01:49]} Qxb6 {[%emt 0:00:18]} 19. Qxb6 {[%emt 0:01:54]} Rxb6 {[%emt 0:00:04]} 20. Na5 {[%emt 0:03:28]} Bg7 {[%emt 0:04:18]} 21. c4 {[%emt 0:09:09]} Kd7 {[%emt 0:09:11]} 22. b4 {[%emt 0:02:14]} Rc8 {[%emt 0:09:28]} 23. Bd3 {[%emt 0:15:11]} Ng8 {[%emt 0:06:51]} 24. Rc1 {[%emt 0:02:35]} bxc4 {[%emt 0:09:56]} 25. Bxc4 {[%emt 0:01:27]} Ne7 {[%emt 0:01:45]} 26. g4 {[%emt 0:00:36]} h5 {[%emt 0:03:07]} 27. h3 {[%emt 0:01:22]} Bh6 {[%emt 0:00:38]} 28. Rc2 {[%emt 0:00:42]} h4 {[%emt 0:01:39]} 29. Bb3 {[%emt 0:01:15]} Rxc2 {[%emt 0:01:38]} 30. Kxc2 {[%emt 0:00:05]} Rb8 {[%emt 0:01:37]} 31. Kd3 {[%emt 0:00:38]} f5 {[%emt 0:01:16]} 32. Rg1 {[%emt 0:09:44]} Rf8 {[%emt 0:01:19]} 33. g5 {[%emt 0:00:23]} Bg7 {[%emt 0:00:23]} 34. Rc1 {[%emt 0:00:04]} Ke8 {[%emt 0:03:10]} 35. Rc7 {[%emt 0:05:11]} e4+ {[%emt 0:00:47]} 36. Ke2 {[%emt 0:00:37]} Kf7 {[%emt 0:02:13]} 37. Nc6 {[%emt 0:02:20]} Re8 {[%emt 0:00:03]} 38. fxe4 {[%emt 0:00:52]} Kf8 {[%emt 0:01:38]} 39. Nxe7 {[%emt 0:01:17]} Rxe7 {[%emt 0:00:01]} 40. Rxe7 {[%emt 0:00:06]} Kxe7 {[%emt 0:00:03]} 41. exf5 {[%emt 0:00:09]} gxf5 {[%emt 0:00:42]} 42. Bc2 {[%emt 0:01:44]} Bb2 {[%emt 0:01:13]} 43. a4 {[%emt 0:00:04]} Bc1 {[%emt 0:01:18]} 44. g6 {[%emt 0:02:56]} Ba3 {[%emt 0:00:28]} 45. b5 {[%emt 0:00:07]} axb5 {[%emt 0:00:28]} 46. axb5 {[%emt 0:00:05]} Bc5 {[%emt 0:00:31]} 47. Bxf5 {[%emt 0:00:04]} Bb6 {[%emt 0:00:30]} 48. Kf3 {[%emt 0:00:17]} Kf6 {[%emt 0:00:22]} 49. Kg4 {[%emt 0:00:04]} Bd8 {[%emt 0:00:39]} 50. Bd3 {[%emt 0:00:17]} Kg7 {[%emt 0:00:28]} 51. Kf5 {[%emt 0:00:03]} 1-0

[Event "30th Tamil Nadu IM Norm 2024"]
[Site "Coimbatore"]
[Date "2024.10.02"]
[Round "4.5"]
[White "Tologon tegin, Semetei"]
[Black "Nandish V S"]
[Result "1-0"]
[ECO "D02"]
[WhiteElo "2337"]
[BlackElo "2212"]
[Annotator "RC"]
[PlyCount "73"]
[EventDate "2024.09.15"]
[EventCountry "IND"]
[SourceTitle "playchess.com"]
[Source "ChessBase"]
[SourceQuality "1"]
[TimeControl "5400+30"]

1. d4 {[%emt 0:02:42]} Nf6 {[%emt 0:00:06]} 2. c3 {[%emt 0:00:07]} d5 {[%emt 0:00:05]} 3. Nf3 {[%emt 0:00:04]} c5 {[%emt 0:01:54]} 4. dxc5 {[%emt 0:00:09]} a5 {[%emt 0:00:05]} 5. b4 {[%emt 0:01:27]} g6 {[%emt 0:04:51]} 6. Bb2 {[%emt 0:02:23]} Bg7 {[%emt 0:01:00]} 7. Nbd2 {[%emt 0:00:40]} O-O {[%emt 0:01:34]} 8. e3 {[%emt 0:00:19]} b6 {[%emt 0:05:11]} 9. cxb6 {[%emt 0:00:35]} Qxb6 {[%emt 0:00:03]} 10. b5 {[%emt 0:00:18]} a4 {[%emt 0:00:54]} 11. c4 {[%emt 0:00:09]} Bd7 {[%emt 0:10:02]} 12. Rb1 {[%emt 0:04:35]} Bf5 {[%emt 0:06:32]} 13. Rc1 {[%emt 0:00:17]} dxc4 {[%emt 0:12:33]} 14. Bxc4 {[%emt 0:00:45]} Nbd7 {[%emt 0:02:30]} 15. O-O {[%emt 0:00:23]} Rfd8 {[%emt 0:00:50]} 16. Qe2 {[%emt 0:00:45]} Qb7 {[%emt 0:01:12]} 17. Nd4 {[%emt 0:14:16]} Nb6 {[%emt 0:07:28]} 18. Nxf5 {[%emt 0:10:11]} gxf5 {[%emt 0:00:13]} 19. Nf3 {[%emt 0:03:00]} Nxc4 {[%emt 0:03:07]} 20. Qxc4 {[%emt 0:00:07]} Rdc8 {[%emt 0:01:19]} 21. Qe2 {[%emt 0:01:51]} Rcb8 {[%emt 0:02:15]} 22. Be5 {[%emt 0:00:53]} Rc8 {[%emt 0:01:11]} 23. Nd4 {[%emt 0:02:12]} Qd5 {[%emt 0:00:47]} 24. f4 {[%emt 0:11:30]} e6 {[%emt 0:03:22]} 25. Nc6 {[%emt 0:01:40]} Qd7 {[%emt 0:00:31]} 26. Bxf6 {[%emt 0:02:12]} Bxf6 {[%emt 0:00:08]} 27. e4 {[%emt 0:00:04]} fxe4 {[%emt 0:00:51]} 28. Qxe4 {[%emt 0:02:21]} Qb7 {[%emt 0:00:30]} 29. f5 {[%emt 0:04:18]} e5 {[%emt 0:00:50]} 30. Qd5 {[%emt 0:02:25]} Rd8 {[%emt 0:01:01]} 31. Qf3 {[%emt 0:00:24]} Re8 {[%emt 0:01:10]} 32. Rb1 {[%emt 0:05:25]} Kh8 {[%emt 0:01:05]} 33. Rfe1 {[%emt 0:01:44]} Rac8 {[%emt 0:01:06]} 34. Kh1 {[%emt 0:01:06]} Qd7 {[%emt 0:00:43]} 35. Qe4 {[%emt 0:01:11]} Qc7 {[%emt 0:00:20]} 36. Qxa4 {[%emt 0:00:20]} Qb6 {[%emt 0:00:29]} 37. Qe4 {[%emt 0:00:21]} 1-0

[Event "30th Tamil Nadu IM Norm 2024"]
[Site "Coimbatore"]
[Date "2024.10.03"]
[Round "5.1"]
[White "Nandish V S"]
[Black "Bharadia Yash"]
[Result "1/2-1/2"]
[ECO "E69"]
[WhiteElo "2212"]
[BlackElo "2415"]
[Annotator "TA"]
[PlyCount "65"]
[EventDate "2024.09.15"]
[EventCountry "IND"]
[SourceTitle "playchess.com"]
[Source "ChessBase"]
[SourceQuality "1"]
[TimeControl "5400+30"]

{[%evp 38,65,80,77,98,54,107,87,114,66,88,0,98,91,91,81,88,88,102,107,119,95,109,79,88,89,79,82,90,96]} 1. c4 {[%emt 0:00:01]} e5 {[%emt 0:02:05]} 2. g3 {[%emt 0:00:07]} Nf6 {[%emt 0:00:12]} 3. Bg2 {[%emt 0:00:04]} g6 {[%emt 0:06:08]} 4. Nc3 {[%emt 0:00:30]} Bg7 {[%emt 0:00:06]} 5. e4 {[%emt 0:01:29]} O-O {[%emt 0:00:55]} 6. Nge2 {[%emt 0:00:06]} Nc6 {[%emt 0:01:13][%cal Bb8c6,Bc6e5,Be5g4][%mdl 32]} 7. O-O {[%emt 0:00:13]} d6 {[%emt 0:00:51]} 8. d3 {[%emt 0:00:27]} Nd7 {[%emt 0:05:40]} 9. Be3 {[%emt 0:04:38]} Nc5 {[%emt 0:01:06]} 10. d4 {[%emt 0:14:42]} exd4 {[%emt 0:03:07]} 11. Nxd4 {[%emt 0:00:09]} Ne5 {[%emt 0:00:30]} 12. b3 {[%emt 0:01:22]} Ng4 {[%emt 0:05:59]} 13. Bc1 {[%emt 0:03:48]} Re8 {[%emt 0:00:47]} 14. h3 {[%emt 0:11:03]} Nf6 {[%emt 0:00:56]} 15. Re1 {[%emt 0:02:11]} a5 {[%emt 0:03:30]} 16. Rb1 {[%emt 0:02:36]} c6 {[%emt 0:09:50]} 17. Bf4 {[%emt 0:05:22]} Nh5 {[%emt 0:05:30]} 18. Be3 {[%emt 0:00:49]} Qc7 {[%emt 0:01:23]} 19. Qc2 {[%emt 0:02:05]} Nf6 {[%emt 0:04:44]} 20. Rbd1 {[%emt 0:02:14]} Nfd7 {[%emt 0:02:50]} 21. Nde2 {[%emt 0:05:30]} Ne6 {[%emt 0:06:55]} (21... a4 $14) 22. Qd2 {[%emt 0:02:09]} Bf8 {[%emt 0:00:59]} 23. Bh6 {[%emt 0:02:37] White is more active.} (23. f4 $16) 23... Be7 {[%emt 0:01:34]} 24. Be3 {[%emt 0:09:35]} ({White should try} 24. Qc2 $16) 24... Nec5 {[%emt 0:03:48]} (24... Bf8 $11 {keeps the balance.}) 25. f4 $16 {[%emt 0:07:08] White is better.} Bf8 {[%emt 0:01:02]} 26. Bd4 {[%emt 0:01:42]} Ne6 {[%emt 0:03:47] [#]} 27. Bf2 $1 {[%emt 0:00:53]} Ra6 {[%emt 0:02:32]} 28. Nd4 {[%emt 0:02:57]} Nec5 {[%emt 0:00:35]} 29. Nc2 {[%emt 0:01:57]} Nb6 {[%emt 0:01:44]} 30. Bf1 {[%emt 0:02:48]} Ra8 {[%emt 0:00:48]} 31. Bd4 {[%emt 0:01:27]} Nbd7 {[%emt 0:04:45]} 32. Bg2 {[%emt 0:00:34]} Ne6 {[%emt 0:02:38]} 33. Bf2 {[%emt 0:00:15] Weighted Error Value: White=0.21 (precise) /Black=0.24 (precise) .  Mistake:       	White=2     	Black=2      Inaccurate:     	White=1     	Black=1      OK:         	White=2     	Black=2      Strong:       	White=1     	---} 1/2-1/2